bitfinex/quotes_SOLUSD_20250721
["timestamp","ask_amount","ask_price","bid_price","bid_amount"]
[1753114754988,16.07950645,193.72,193.71,0.03]
[1753114755287,16.78468397,193.71,193.68,22.18525186]
[1753114755492,2.5704,193.72,193.68,22.18525186]
[1753114755493,42.56,193.7,193.68,22.18525186]
[1753114755721,1.8804,193.72,193.68,22.18525186]
[1753114755722,42.58,193.69,193.68,22.18525186]
[1753114755891,43.27,193.69,193.68,22.18525186]
[1753114756193,12.90044574,193.8,193.68,38.26475831]
[1753114756382,6.5441,193.71,193.68,22.18525186]
[1753114756573,0.69,193.75,193.68,22.18525186]
[1753114756775,16.07950645,193.72,193.68,22.18525186]
[1753114756968,0.69,193.72,193.68,22.18525186]
[1753114757175,0.69,193.71,193.68,22.18525186]
[1753114757779,0.69,193.7,193.68,22.18525186]
[1753114757982,0.69,193.69,193.68,22.18525186]
[1753114758174,21.9323956,193.69,193.68,22.18525186]
[1753114758369,21.9323956,193.69,193.51,6.68626915]
[1753114758370,51.62430245,193.69,193.54,0.68]
[1753114758572,16.07950645,193.59,193.51,5.16743492]
[1753114758793,43.19,193.58,193.5,10.087855]
[1753114758968,43.19,193.58,193.5,9.087855]
[1753114758969,42.62,193.57,193.5,9.087855]
[1753114759377,16.07950645,193.56,193.5,9.087855]
[1753114759595,42.62,193.57,193.5,9.087855]
[1753114759796,42.62,193.57,193.51,0.68]
[1753114759994,42.68,193.59,193.51,0.68]
[1753114760219,16.07950645,193.58,193.5,9.60465086]
[1753114760375,16.07950645,193.62,193.53,26.0]
[1753114760575,42.68,193.61,193.56,16.07950645]
[1753114760799,42.68,193.61,193.51,0.68]
[1753114760800,42.68,193.61,193.53,26.0]
[1753114761210,42.68,193.61,193.54,0.68]
[1753114761385,6.5158,193.66,193.54,0.68]
[1753114761585,1.9122,193.67,193.63,16.07950645]
[1753114761791,6.5305,193.73,193.66,16.07950645]
[1753114762093,65.35000645,193.73,193.68,16.07950645]
[1753114762293,49.2705,193.73,193.68,21.24260197]
[1753114762589,16.07950645,193.71,193.65,5.16395558]
[1753114762799,0.69,193.7,193.6,12.91319085]
[1753114763107,16.07950645,193.68,193.63,26.0]
[1753114763295,0.69,193.68,193.61,5.16502246]
[1753114763607,0.69,193.72,193.63,16.07950645]
[1753114763811,16.76950645,193.72,193.66,16.07950645]
[1753114764019,42.74,193.75,193.67,0.68]
[1753114764178,6.5305,193.78,193.71,26.0]
[1753114764378,1.8972,193.8,193.71,26.68]
[1753114764607,17.97670645,193.8,193.75,16.07950645]
[1753114764921,16.07950645,193.76,193.66,5.16368893]
[1753114765129,16.07950645,193.74,193.68,16.07950645]
[1753114765406,43.49,193.75,193.66,16.07950645]
[1753114765615,43.49,193.75,193.65,5.84394295]
[1753114765815,16.07950645,193.71,193.66,16.07950645]
[1753114765977,42.8,193.75,193.65,5.16394295]
[1753114766181,16.07950645,193.75,193.7,16.07950645]
[1753114766492,42.74,193.77,193.72,16.07950645]
[1753114766696,42.74,193.77,193.75,16.07950645]
[1753114766911,42.74,193.77,193.73,16.07950645]
[1753114767222,16.07950645,193.76,193.67,0.68]
[1753114767410,16.07950645,193.74,193.67,0.68]
[1753114767630,43.39,193.76,193.71,16.07950645]
[1753114767903,16.07950645,193.76,193.67,0.68]
[1753114768081,16.07950645,193.75,193.69,21.24232207]
[1753114768281,16.07950645,193.73,193.7,26.0]
[1753114768515,16.07950645,193.72,193.67,21.24271275]
[1753114768813,5.16075759,193.77,193.63,13.59122243]
[1753114768814,43.31,193.71,193.64,21.24348693]
[1753114769020,16.07950645,193.69,193.61,5.16502246]
[1753114769384,6.98,193.72,193.61,5.6815247]
[1753114769634,2.5872,193.8,193.71,16.07950645]
[1753114769799,3.7734483,193.82,193.76,16.07950645]
[1753114770120,16.07950645,193.8,193.72,27.19620896]
[1753114770281,16.07950645,193.8,193.74,16.07950645]
[1753114770481,5.90954666,193.82,193.73,5.16182315]
[1753114770682,16.07950645,193.8,193.75,16.07950645]
[1753114770883,16.07950645,193.76,193.71,16.07950645]
[1753114771095,16.07950645,193.78,193.71,0.68]
[1753114771298,16.07950645,193.78,193.73,16.07950645]
[1753114771490,16.75950645,193.78,193.72,16.07950645]
[1753114772118,16.75950645,193.78,193.73,5.16182315]
[1753114772412,0.68,193.78,193.73,21.2413296]
[1753114772614,5.16002637,193.8,193.73,21.2413296]
[1753114772785,0.74,193.82,193.76,16.07950645]
[1753114772981,0.06,193.82,193.8,16.07950645]
[1753114773185,0.06,193.82,193.81,16.07950645]
[1753114773414,0.06,193.82,193.81,16.74950645]
[1753114773986,0.06,193.82,193.81,21.90919893]
[1753114774607,0.06,193.82,193.81,5.15969248]
[1753114775109,0.06,193.82,193.81,21.23919893]
[1753114775312,0.06,193.82,193.81,22.42516817]
[1753114775705,0.06,193.9,193.84,26.0]
[1753114775918,0.06,193.9,193.89,16.07950645]
[1753114776099,0.06,193.9,193.88,5.15763432]
[1753114776400,0.06,193.9,193.86,31.1583617]
[1753114776605,0.06,193.9,193.87,0.67]
[1753114776932,0.06,193.9,193.89,16.07950645]
[1753114778007,0.06,193.9,193.89,21.90707001]
[1753114778204,0.06,193.9,193.89,42.07950645]
[1753114778796,0.06,193.9,193.89,31.82756356]
[1753114778995,0.06,193.9,193.86,0.67]
[1753114779194,0.06,193.9,193.81,12.89860327]
[1753114779195,16.75950645,193.89,193.83,16.07950645]
[1753114779701,16.13950645,193.9,193.85,16.07950645]
[1753114779901,0.06,193.9,193.85,16.07950645]
[1753114780194,16.07950645,193.87,193.82,16.07950645]
[1753114780400,16.75950645,193.87,193.82,16.07950645]
[1753114780609,0.68,193.87,193.81,16.07950645]
[1753114780834,16.07950645,193.84,193.78,16.07950645]
[1753114781033,0.68,193.85,193.78,42.07950645]
[1753114781231,1.987,193.87,193.8,16.07950645]
[1753114781412,5.21735586,193.9,193.84,16.07950645]
[1753114781413,16.13950645,193.9,193.84,16.07950645]
[1753114781722,0.06,193.9,193.88,16.07950645]
[1753114781923,0.06,193.9,193.89,16.07950645]
[1753114782105,0.06,193.9,193.89,21.90707001]
[1753114783009,0.06,193.9,193.89,22.42282636]
[1753114783202,0.06,193.9,193.89,6.34331991]
[1753114783402,0.06,193.9,193.89,21.90707001]
[1753114783624,0.06,193.9,193.88,42.07950645]
[1753114783925,16.13950645,193.9,193.82,0.67]
[1753114784225,16.13950645,193.9,193.84,16.07950645]
[1753114784407,0.06,193.9,193.85,26.67]
[1753114784723,0.06,193.9,193.89,16.07950645]
[1753114785420,0.06,193.9,193.87,0.67]
[1753114785608,0.06,193.9,193.89,16.07950645]
[1753114786000,0.06,193.9,193.89,16.74950645]
[1753114786203,0.06,193.9,193.89,21.90707001]
[1753114787925,0.06,193.98,193.92,26.0]
[1753114788127,0.06,193.98,193.93,0.51564997]
[1753114788420,0.06,193.98,193.97,16.07950645]
[1753114788727,5.1514527,194.12,194.06,16.07950645]
[1753114789024,24.94408397,194.13,194.1,16.07950645]
[1753114789025,8.1594,194.13,194.1,16.07950645]
[1753114789505,48.78959575,194.19,194.12,16.07950645]
[1753114789703,16.07950645,194.18,194.13,16.07950645]
[1753114789900,16.75950645,194.17,194.07,26.67]
[1753114790120,5.15039142,194.16,194.11,16.07950645]
[1753114790432,0.68,194.16,194.12,16.07950645]
[1753114790630,9.0058,194.2,194.14,16.07950645]
[1753114790922,7.17699298,194.2,194.14,26.0]
[1753114791125,18.10700645,194.2,194.14,42.07950645]
[1753114791325,18.10700645,194.2,194.11,5.15167702]
[1753114791326,2.0275,194.2,194.15,16.07950645]
[1753114791507,16.75950645,194.19,194.14,26.0]
[1753114791706,0.68,194.18,194.14,26.0]
[1753114791916,2.0275,194.2,194.15,16.07950645]
[1753114792129,42.94,194.23,194.16,5.15022224]
[1753114792426,16.75950645,194.25,194.19,16.07950645]
[1753114792604,0.68,194.25,194.19,16.07950645]
[1753114792803,6.4569,194.26,194.21,16.07950645]
[1753114793023,16.07950645,194.24,194.16,31.15022224]
[1753114793246,0.68,194.25,194.18,16.07950645]
[1753114793527,6.4569,194.26,194.21,16.07950645]
[1753114793906,6.4569,194.26,194.22,16.07950645]
[1753114794110,44.7412,194.27,194.22,16.07950645]
[1753114794317,0.68,194.26,194.19,26.0]
[1753114794520,16.07950645,194.25,194.19,16.07950645]
[1753114795007,16.75950645,194.24,194.18,16.07950645]
[1753114795206,0.68,194.24,194.18,16.07950645]
[1753114795423,16.75950645,194.24,194.18,16.07950645]
[1753114795734,16.75950645,194.24,194.19,16.07950645]
[1753114796113,16.07950645,194.25,194.19,26.0]
[1753114796310,16.07950645,194.24,194.19,42.07950645]
[1753114796505,0.68,194.23,194.19,26.0]
[1753114796712,0.68,194.22,194.17,16.07950645]
[1753114796921,0.68,194.26,194.18,42.07950645]
[1753114797126,16.07950645,194.25,194.2,16.07950645]
[1753114797325,16.75950645,194.25,194.2,16.07950645]
[1753114797520,44.7412,194.27,194.22,16.07950645]
[1753114797715,45.4212,194.27,194.22,16.07950645]
[1753114797916,6.4926,194.32,194.26,16.07950645]
[1753114798124,16.07950645,194.31,194.24,26.0]
[1753114798311,16.07950645,194.3,194.24,16.07950645]
[1753114798511,7.9555,194.32,194.21,5.14906544]
[1753114798710,16.07950645,194.23,194.17,16.07950645]
[1753114798911,16.07950645,194.22,194.14,5.15092201]
[1753114799136,16.07950645,194.22,194.16,16.07950645]
[1753114799317,16.07950645,194.21,194.16,26.0]
[1753114799521,16.75950645,194.2,194.14,16.07950645]
[1753114799805,0.68,194.2,194.14,16.07950645]
[1753114800029,0.68,194.24,194.16,16.07950645]
[1753114800207,0.68,194.24,194.17,16.07950645]
[1753114800409,16.07950645,194.22,194.17,16.07950645]
[1753114800612,16.07950645,194.18,194.12,16.07950645]
[1753114800826,0.68,194.21,194.06,12.88196023]
[1753114800827,43.36,194.17,194.06,5.15304544]
[1753114801016,16.78468397,194.15,194.05,5.15329517]
[1753114801336,16.07950645,194.11,194.05,21.23280162]
[1753114801515,42.68,194.16,194.09,5.15224895]
[1753114801835,16.07950645,194.14,194.03,0.65]
[1753114802042,16.07950645,194.12,194.06,16.07950645]
[1753114802208,0.72,194.13,194.07,16.07950645]
[1753114802410,0.72,194.13,194.09,16.07950645]
[1753114802610,0.72,194.13,194.08,16.07950645]
[1753114802844,0.72,194.13,194.09,16.07950645]
[1753114803044,42.68,194.15,194.07,26.0]
[1753114803344,16.07950645,194.14,194.08,16.07950645]
[1753114803553,43.4,194.15,194.11,16.07950645]
[1753114803554,42.68,194.15,194.11,16.07950645]
[1753114803720,8.9865,194.19,194.14,16.07950645]
[1753114803922,125.56,194.31,194.17,16.07950645]
[1753114803923,0.72,194.23,194.17,16.07950645]
[1753114804147,42.64,194.24,194.2,16.07950645]
[1753114804449,42.64,194.24,194.14,1.1650922]
[1753114804630,16.07950645,194.23,194.14,0.65]
[1753114804951,16.07950645,194.19,194.14,16.07950645]
[1753114805131,16.07950645,194.15,194.08,21.23202087]
[1753114805440,16.07950645,194.12,194.08,5.15251442]
[1753114805647,16.07950645,194.13,194.08,21.23202087]
[1753114805824,0.72,194.14,194.08,21.23202087]
[1753114806021,43.36,194.17,194.11,16.07950645]
[1753114806219,42.64,194.17,194.13,16.07950645]
[1753114806726,42.64,194.17,194.09,26.0]
[1753114806940,43.36,194.17,194.09,26.0]
[1753114807259,1.8769,194.14,194.07,1.0]
[1753114807544,21.23202087,194.08,194.07,0.28]
[1753114807756,63.95202087,194.08,193.97,16.07950645]
[1753114808047,63.95202087,194.08,193.91,4.2528941]
[1753114808048,16.07950645,193.98,193.91,4.2528941]
[1753114808339,16.07950645,193.95,193.93,26.0]
[1753114808547,16.07950645,193.94,193.89,0.03]
[1753114808755,0.72,193.95,193.89,0.03]
[1753114809137,16.07950645,193.91,193.89,0.03]
[1753114809326,58.75950645,193.91,193.89,0.03]
[1753114809523,16.07950645,193.9,193.89,0.03]
[1753114810024,42.68,193.91,193.89,0.03]
[1753114810557,16.79950645,193.9,193.89,0.03]
[1753114810920,16.07950645,193.9,193.89,0.03]
[1753114811346,16.79950645,193.9,193.89,0.03]
[1753114811573,42.68,193.91,193.89,0.03]
[1753114811924,5.87569691,193.97,193.89,0.03]
[1753114812225,16.07950645,193.94,193.89,16.10950645]
[1753114812523,58.63950645,193.96,193.91,16.07950645]
[1753114812732,16.07950645,193.93,193.89,26.03]
[1753114813049,42.56,193.96,193.91,16.07950645]
[1753114813450,42.56,193.96,193.92,26.0]
[1753114813625,42.56,193.96,193.93,16.72950645]
[1753114813827,42.5,193.97,193.93,16.72950645]
[1753114814054,42.5,193.97,193.96,16.07950645]
[1753114814267,6.2972,194.02,193.96,16.72950645]
[1753114814432,42.48,194.02,193.96,26.0]
[1753114814638,16.07950645,193.98,193.87,26.65]
[1753114814855,16.07950645,193.99,193.93,16.07950645]
[1753114815062,16.07950645,194.01,193.93,0.65]
[1753114815235,16.07950645,193.97,193.91,16.07950645]
[1753114815550,42.48,194.02,193.89,0.68]
[1753114815551,16.07950645,193.94,193.89,0.03]
[1753114815815,58.59950645,193.94,193.89,0.03]
[1753114815965,16.07950645,193.93,193.89,0.03]
[1753114816262,16.07950645,193.9,193.89,0.03]
[1753114816432,16.07950645,193.9,193.85,0.03]
[1753114816433,16.78468397,193.89,193.85,0.03]
[1753114816628,16.78468397,193.86,193.85,0.03]
[1753114816965,43.2,193.88,193.85,0.03]
[1753114817133,20.4787773,193.86,193.85,0.03]
[1753114817332,42.48,193.88,193.85,0.03]
[1753114817532,42.44,193.91,193.87,20.4787773]
[1753114817751,42.44,193.91,193.86,20.4787773]
[1753114818030,0.72,193.9,193.85,0.03]
[1753114818249,43.14,193.9,193.85,0.03]
[1753114818456,0.72,193.89,193.85,0.03]
[1753114818652,20.4787773,193.87,193.85,0.03]
[1753114819565,42.42,193.9,193.85,20.5087773]
[1753114819767,42.42,193.9,193.86,21.1287773]
[1753114819965,42.42,193.9,193.87,20.4787773]
[1753114820167,42.42,193.9,193.88,20.4787773]
[1753114820351,42.42,193.9,193.88,0.65]
[1753114820543,42.42,193.9,193.85,20.5087773]
[1753114820746,62.8987773,193.9,193.85,0.03]
[1753114821153,20.4787773,193.88,193.85,0.03]
[1753114821351,20.4787773,193.89,193.85,0.03]
[1753114821554,42.42,193.9,193.85,0.03]
[1753114821760,6.4635,193.92,193.85,0.03]
[1753114821962,6.4635,193.92,193.88,20.4787773]
[1753114821963,42.3,193.92,193.88,20.4787773]
[1753114822249,42.3,193.92,193.89,0.65]
[1753114822449,20.4787773,193.9,193.85,0.03]
[1753114822650,20.4787773,193.87,193.85,0.03]
[1753114822864,20.4787773,193.86,193.85,0.03]
[1753114823068,21.1987773,193.86,193.85,0.03]
[1753114823365,23.35968397,193.85,193.82,0.03]
[1753114823570,20.4787773,193.83,193.82,0.03]
[1753114823772,21.94384405,193.83,193.82,0.03]
[1753114823984,42.42262135,193.83,193.82,0.03]
[1753114824150,62.7587773,193.83,193.82,0.03]
[1753114824475,42.28,193.83,193.82,0.03]
[1753114824770,62.7587773,193.83,193.82,0.03]
[1753114824978,43.0,193.83,193.82,0.03]
[1753114825167,62.7587773,193.83,193.82,0.03]
[1753114825368,42.28,193.83,193.82,0.03]
[1753114825667,1.8917,193.88,193.82,21.1587773]
[1753114825869,42.28,193.87,193.82,0.68]
[1753114826172,62.7587773,193.87,193.82,0.03]
[1753114826372,42.28,193.87,193.83,21.1287773]
[1753114826566,62.7587773,193.87,193.83,0.65]
[1753114826767,20.4787773,193.84,193.82,0.03]
[1753114826968,62.6787773,193.83,193.82,0.03]
[1753114828277,42.2,193.83,193.82,0.03]
[1753114828569,20.4787773,193.86,193.82,0.03]
[1753114828783,20.4787773,193.84,193.82,0.03]
[1753114829378,62.5787773,193.85,193.82,0.03]
[1753114829778,42.1,193.85,193.82,0.03]
[1753114829955,42.1,193.85,193.82,0.68]
[1753114830161,20.4787773,193.83,193.82,0.03]
[1753114830683,42.02,193.85,193.82,0.68]
[1753114830876,1.8917,193.88,193.83,20.4787773]
[1753114831090,42.16,193.87,193.84,0.65]
[1753114831264,42.16,193.86,193.85,0.68]
[1753114831579,42.16,193.86,193.82,0.03]
[1753114831580,42.16,193.86,193.84,20.4787773]
[1753114831763,42.16,193.86,193.85,20.4787773]
[1753114831954,37.16,193.94,193.85,20.4787773]
[1753114832159,20.4787773,193.92,193.86,0.68]
[1753114832353,20.4787773,193.92,193.87,20.4787773]
[1753114832560,42.14,193.93,193.88,21.1587773]
[1753114832756,42.14,193.93,193.89,21.1587773]
[1753114832982,42.14,193.93,193.91,20.4787773]
[1753114833188,42.14,193.93,193.92,0.68]
[1753114833482,0.06,193.94,193.92,0.68]
[1753114833782,0.06,193.98,193.93,21.67442727]
[1753114833984,0.06,193.98,193.97,20.4787773]
[1753114834365,0.06,193.98,193.95,0.68]
[1753114834576,20.5387773,193.98,193.95,26.0]
[1753114834768,0.06,193.98,193.96,0.68]
[1753114835080,0.06,193.98,193.93,0.68]
[1753114835287,0.06,193.98,193.95,20.4787773]
[1753114835663,0.06,193.98,193.84,25.70186947]
[1753114835664,0.06,193.98,193.97,20.4787773]
[1753114835869,0.06,193.98,193.85,0.68]
[1753114836091,0.06,193.98,193.94,20.4787773]
[1753114836264,0.06,193.98,193.95,0.68]
[1753114836471,0.06,193.98,193.93,46.4787773]
[1753114836979,0.06,193.98,193.93,26.0]
[1753114836980,0.06,193.95,193.93,26.0]
[1753114837481,15.42,193.88,193.5,1e-08]
[1753114837667,5.16876001,193.47,193.35,26.32892145]
[1753114837863,16.16762539,193.41,193.36,31.39545945]
[1753114838063,0.515916,193.4,193.37,0.68]
[1753114838267,0.515916,193.44,193.38,16.16762539]
[1753114838482,0.515916,193.44,193.43,16.16762539]
[1753114838689,0.515916,193.52,193.43,16.84762539]
[1753114838993,0.515916,193.52,193.45,16.16762539]
[1753114839167,0.515916,193.52,193.45,43.0]
[1753114839368,16.16762539,193.52,193.44,43.68]
[1753114839585,16.16762539,193.52,193.44,59.84762539]
[1753114839883,0.515916,193.51,193.45,16.16762539]
[1753114840184,16.16762539,193.57,193.49,16.16762539]
[1753114840373,0.515916,193.56,193.46,0.68]
[1753114840575,16.16762539,193.57,193.5,26.0]
[1753114840777,16.16762539,193.54,193.46,0.68]
[1753114840984,0.515916,193.53,193.41,0.68]
[1753114841172,20.56105276,193.46,193.41,0.68]
[1753114841366,1.015916,193.53,193.41,0.68]
[1753114841892,20.56105276,193.46,193.41,0.68]
[1753114842074,20.56105276,193.46,193.39,20.56105276]
[1753114842075,20.56105276,193.44,193.39,42.92]
[1753114842271,20.56105276,193.4,193.31,0.68]
[1753114842489,5.16797719,193.5,193.35,20.56105276]
[1753114842490,0.515916,193.39,193.35,20.56105276]
[1753114842671,20.56105276,193.46,193.38,20.56105276]
[1753114842874,0.515916,193.49,193.43,20.56105276]
[1753114843278,20.56105276,193.46,193.43,26.0]
[1753114843486,0.515916,193.45,193.42,26.0]
[1753114843680,0.5,193.54,193.42,26.0]
[1753114843900,20.56105276,193.5,193.43,0.68]
[1753114844072,20.56105276,193.52,193.45,46.56105276]
[1753114844272,0.515916,193.51,193.45,46.56105276]
[1753114844475,20.56105276,193.56,193.49,20.56105276]
[1753114844690,0.515916,193.58,193.49,0.68]
[1753114844887,21.07696876,193.57,193.49,0.68]
[1753114845077,0.515916,193.57,193.5,20.56105276]
[1753114845298,20.56105276,193.57,193.49,43.56]
[1753114845491,0.515916,193.56,193.49,43.56]
[1753114845833,0.515916,193.56,193.49,64.12105276]
[1753114845987,20.56105276,193.57,193.49,43.56]
[1753114846179,0.515916,193.56,193.5,0.68]
[1753114846696,20.56105276,193.55,193.5,0.68]
[1753114846898,0.515916,193.54,193.51,0.68]
[1753114847071,20.56105276,193.55,193.51,0.68]
[1753114847275,0.515916,193.63,193.52,21.24105276]
[1753114847477,0.515916,193.63,193.57,20.56105276]
[1753114847802,21.07696876,193.62,193.55,20.56105276]
[1753114847982,20.56105276,193.59,193.56,26.0]
[1753114848382,20.56105276,193.57,193.53,0.68]
[1753114848795,20.56105276,193.58,193.54,0.68]
[1753114849079,20.56105276,193.58,193.52,26.0]
[1753114849487,0.515916,193.57,193.52,26.0]
[1753114849882,20.56105276,193.53,193.46,0.68]
[1753114850187,20.56105276,193.5,193.46,0.68]
[1753114850498,19.40472667,193.53,193.47,21.24105276]
[1753114850687,19.40472667,193.53,193.49,20.56105276]
[1753114850879,19.40472667,193.53,193.5,43.42]
[1753114851283,19.40472667,193.53,193.5,43.4]
[1753114851489,39.96577943,193.53,193.5,42.7]
[1753114851681,39.96577943,193.53,193.5,43.4]
[1753114851992,19.40472667,193.53,193.51,0.68]
[1753114852179,19.40472667,193.53,193.48,26.0]
[1753114852379,19.40472667,193.53,193.5,42.72]
[1753114852581,19.40472667,193.53,193.51,21.24105276]
[1753114852807,19.40472667,193.53,193.51,0.68]
[1753114852992,19.40472667,193.53,193.52,47.24105276]
[1753114853203,19.40472667,193.53,193.52,89.24105276]
[1753114853204,18.68472667,193.53,193.52,89.24105276]
[1753114853380,10.34812667,193.53,193.52,47.24105276]
[1753114853582,8.26842667,193.53,193.52,69.34]
[1753114853882,20.56105276,193.65,193.52,90.41779521]
[1753114854089,0.71,193.66,193.59,20.56105276]
[1753114854297,20.56105276,193.65,193.6,42.64]
[1753114855077,0.71,193.65,193.6,42.64]
[1753114855276,20.56105276,193.61,193.51,26.0]
[1753114855479,1.225916,193.6,193.51,20.56105276]
[1753114855680,1.225916,193.6,193.46,0.51690271]
[1753114855681,20.56105276,193.59,193.49,42.66]
[1753114855902,20.56105276,193.59,193.53,20.56105276]
[1753114856102,0.71,193.64,193.52,26.0]
[1753114856305,21.07696876,193.63,193.52,26.0]
[1753114856603,21.07696876,193.63,193.57,20.56105276]
[1753114856987,20.56105276,193.62,193.55,26.0]
[1753114857183,20.56105276,193.62,193.56,63.16105276]
[1753114857488,1.225916,193.64,193.57,63.16105276]
[1753114857687,0.515916,193.63,193.57,20.56105276]
[1753114857903,0.71,193.64,193.58,42.58]
[1753114858088,21.07696876,193.63,193.58,42.58]
[1753114858288,0.71,193.64,193.59,20.56105276]
[1753114858496,20.56105276,193.66,193.6,20.56105276]
[1753114858689,20.56105276,193.65,193.55,0.51666236]
[1753114858893,20.56105276,193.65,193.6,20.56105276]
[1753114859090,21.27105276,193.64,193.56,26.0]
[1753114859293,20.56105276,193.62,193.5,26.51679586]
[1753114859501,20.56105276,193.62,193.56,46.56105276]
[1753114859897,20.56105276,193.61,193.56,42.46]
[1753114860095,20.56105276,193.62,193.56,63.02105276]
[1753114860293,0.71,193.64,193.58,20.56105276]
[1753114860497,20.56105276,193.66,193.6,20.56105276]
[1753114860705,20.56105276,193.63,193.51,26.0]
[1753114860997,1.225916,193.62,193.54,20.56105276]
[1753114861197,20.56105276,193.61,193.56,20.56105276]
[1753114861402,0.515916,193.68,193.6,20.56105276]
[1753114861583,20.62105276,193.7,193.65,20.56105276]
[1753114861787,0.06,193.7,193.69,20.56105276]
[1753114862310,0.06,193.7,193.69,21.07734167]
[1753114862633,0.06,193.7,193.67,20.56105276]
[1753114862921,0.06,193.7,193.66,26.0]
[1753114863086,0.06,193.7,193.56,2.1287]
[1753114863087,20.56105276,193.67,193.54,243.4621]
[1753114863295,16.2212289,193.64,193.54,6.6621]
[1753114863603,16.2212289,193.59,193.53,58.6212289]
[1753114863796,0.06,193.7,193.53,58.6212289]
[1753114863797,16.2212289,193.58,193.53,42.4]
[1753114864117,0.68,193.61,193.54,26.0]
[1753114864414,0.68,193.61,193.45,16.1666]
[1753114864415,16.2212289,193.56,193.49,42.38]
[1753114864704,16.2212289,193.53,193.47,16.2212289]
[1753114864923,0.68,193.54,193.46,16.2212289]
[1753114865100,0.68,193.54,193.46,42.36]
[1753114865289,16.2212289,193.51,193.45,16.2212289]
[1753114865486,16.2212289,193.5,193.45,42.36]
[1753114865912,0.68,193.54,193.45,16.2212289]
[1753114866227,16.78468397,193.59,193.49,16.2212289]
[1753114866413,16.2212289,193.56,193.43,42.32]
[1753114866741,16.7371449,193.58,193.46,26.0]
[1753114867019,16.2212289,193.58,193.52,16.2212289]
[1753114867207,16.2212289,193.56,193.51,0.51676915]
[1753114867420,1.195916,193.55,193.48,0.03]
[1753114867588,16.2212289,193.52,193.48,0.03]
[1753114867794,16.7371449,193.54,193.48,16.2512289]
[1753114867997,16.2212289,193.56,193.5,16.2212289]
[1753114868195,16.2212289,193.53,193.48,0.03]
[1753114868406,16.9012289,193.55,193.49,16.2212289]
[1753114868689,0.68,193.55,193.49,16.2212289]
[1753114868891,16.9012289,193.55,193.49,16.2212289]
[1753114869088,16.2212289,193.53,193.48,0.03]
[1753114869307,0.68,193.55,193.48,0.03]
[1753114869512,16.2212289,193.52,193.48,0.03]
[1753114869707,43.00591287,193.62,193.48,0.03]
[1753114869708,0.68,193.51,193.48,0.03]
[1753114869922,16.2212289,193.52,193.48,0.03]
[1753114870107,16.9012289,193.51,193.48,0.03]
[1753114870312,16.2212289,193.49,193.48,0.03]
[1753114870514,16.2212289,193.49,193.41,0.03]
[1753114870723,16.2212289,193.44,193.41,0.03]
[1753114870904,16.2212289,193.43,193.41,0.03]
[1753114871101,16.9012289,193.44,193.41,0.03]
[1753114871303,16.2212289,193.44,193.41,0.03]
[1753114871707,16.2212289,193.43,193.41,0.03]
[1753114871906,16.9012289,193.43,193.41,0.03]
[1753114872295,16.9012289,193.42,193.41,0.03]
[1753114872718,0.68,193.42,193.41,0.03]
[1753114872924,1.195916,193.45,193.41,0.03]
[1753114873220,0.515916,193.47,193.43,16.2212289]
[1753114873420,0.68,193.5,193.42,26.0]
[1753114873725,0.515916,193.53,193.42,26.0]
[1753114873726,0.515916,193.53,193.43,26.51698288]
[1753114873924,16.3186,193.65,193.43,26.51698288]
[1753114873925,0.68,193.56,193.51,16.2212289]
[1753114874123,0.68,193.56,193.47,0.516876]
[1753114874306,0.2228162,193.55,193.47,0.516876]
[1753114874498,0.2228162,193.55,193.46,16.2212289]
[1753114874499,1.195916,193.54,193.46,16.2212289]
[1753114874819,16.2212289,193.47,193.41,0.03]
[1753114875128,16.2212289,193.42,193.41,0.03]